[Event "Late-Titled-Tuesday-Blitz-June-04-2024"]
[Site "Chess.com"]
[Date "2024.06.04"]
[Round "11"]
[White "snowlord"]
[Black "CrushingKings"]
[Result "1-0"]
[WhiteElo "2905"]
[BlackElo "2618"]
[TimeControl "180+1"]
[EndTime "16:02:06 PDT"]
[Termination "snowlord won by resignation"]

1. b3 {[%clk 0:03:00.9]} 1... g6 {[%clk 0:03:00.9]} 2. Bb2 {[%clk 0:03:00.9]}
2... Nf6 {[%clk 0:03:01.7]} 3. Bxf6 {[%clk 0:03:00.4]} 3... exf6 {[%clk
0:03:01.6]} 4. c4 {[%clk 0:03:01.3]} 4... h5 {[%clk 0:03:01.2]} 5. Nc3 {[%clk
0:03:00.8]} 5... h4 {[%clk 0:03:01.4]} 6. e3 {[%clk 0:02:59.5]} 6... a5 {[%clk
0:03:01.7]} 7. d4 {[%clk 0:02:59.1]} 7... d6 {[%clk 0:03:02.2]} 8. Nf3 {[%clk
0:02:54.6]} 8... h3 {[%clk 0:03:02.3]} 9. g3 {[%clk 0:02:53.5]} 9... g5 {[%clk
0:03:02.3]} 10. Be2 {[%clk 0:02:52.6]} 10... Bg7 {[%clk 0:03:00.4]} 11. O-O
{[%clk 0:02:52.6]} 11... f5 {[%clk 0:03:00.7]} 12. Rc1 {[%clk 0:02:49.4]} 12...
Nc6 {[%clk 0:03:00]} 13. Ne1 {[%clk 0:02:30.4]} 13... f4 {[%clk 0:02:59.7]} 14.
Bf3 {[%clk 0:02:24.4]} 14... Ne7 {[%clk 0:02:57.6]} 15. Nd3 {[%clk 0:02:22.8]}
15... Ng6 {[%clk 0:02:57.6]} 16. c5 {[%clk 0:02:19]} 16... Kf8 {[%clk
0:02:54.1]} 17. cxd6 {[%clk 0:02:17.9]} 17... cxd6 {[%clk 0:02:54.4]} 18. Nd5
{[%clk 0:02:17.8]} 18... a4 {[%clk 0:02:23.5]} 19. bxa4 {[%clk 0:02:07]} 19...
Ra5 {[%clk 0:02:23.6]} 20. Qb3 {[%clk 0:02:04.5]} 20... g4 {[%clk 0:02:23.4]}
21. Be4 {[%clk 0:01:40.7]} 21... f5 {[%clk 0:02:23.3]} 22. N5xf4 {[%clk
0:01:32]} 22... Nxf4 {[%clk 0:02:19.2]} 23. Nxf4 {[%clk 0:01:32.9]} 23... fxe4
{[%clk 0:02:19.6]} 24. Ng6+ {[%clk 0:01:30.1]} 24... Ke8 {[%clk 0:02:20.2]} 25.
Nxh8 {[%clk 0:01:29.9]} 25... Bxh8 {[%clk 0:02:20.9]} 26. Qg8+ {[%clk
0:01:20.1]} 26... Ke7 {[%clk 0:02:15]} 27. Rxc8 {[%clk 0:01:16.9]} 1-0

[Event "Late-Titled-Tuesday-Blitz-June-04-2024"]
[Site "Chess.com"]
[Date "2024.06.04"]
[Round "11"]
[White "cristiano78"]
[Black "protectiago"]
[Result "1-0"]
[WhiteElo "2222"]
[BlackElo "2114"]
[TimeControl "180+1"]
[EndTime "16:02:18 PDT"]
[Termination "cristiano78 won by resignation"]

1. d4 {[%clk 0:02:57.4]} 1... Nf6 {[%clk 0:02:58.9]} 2. c4 {[%clk 0:02:50.4]}
2... g6 {[%clk 0:02:57.7]} 3. Nf3 {[%clk 0:02:50]} 3... Bg7 {[%clk 0:02:56.3]}
4. Nc3 {[%clk 0:02:50.5]} 4... d5 {[%clk 0:02:54.8]} 5. Bf4 {[%clk 0:02:50]}
5... O-O {[%clk 0:02:52.9]} 6. e3 {[%clk 0:02:49.1]} 6... c5 {[%clk 0:02:51.4]}
7. dxc5 {[%clk 0:02:48.7]} 7... Qa5 {[%clk 0:02:50.6]} 8. Rc1 {[%clk 0:02:48.3]}
8... Ne4 {[%clk 0:02:41.1]} 9. cxd5 {[%clk 0:02:37.4]} 9... Nxc3 {[%clk
0:02:38.6]} 10. bxc3 {[%clk 0:02:34.9]} 10... Bxc3+ {[%clk 0:02:30.8]} 11. Nd2
{[%clk 0:02:35.5]} 11... Rd8 {[%clk 0:02:05.8]} 12. e4 {[%clk 0:02:28.9]} 12...
Qxc5 {[%clk 0:01:31]} 13. Qc2 {[%clk 0:02:28.4]} 13... Bxd2+ {[%clk 0:01:30.5]}
14. Qxd2 {[%clk 0:02:28.3]} 14... Qb6 {[%clk 0:01:10.3]} 15. Bc7 {[%clk
0:02:26.3]} 1-0

[Event "Late-Titled-Tuesday-Blitz-June-04-2024"]
[Site "Chess.com"]
[Date "2024.06.04"]
[Round "11"]
[White "Pig-filth"]
[Black "Statham_01"]
[Result "0-1"]
[WhiteElo "2356"]
[BlackElo "2697"]
[TimeControl "180+1"]
[EndTime "16:02:27 PDT"]
[Termination "Statham_01 won by resignation"]

1. d4 {[%clk 0:03:00.9]} 1... Nf6 {[%clk 0:02:58.5]} 2. Bg5 {[%clk 0:03:01.1]}
2... c5 {[%clk 0:02:56.7]} 3. Nc3 {[%clk 0:02:59.7]} 3... cxd4 {[%clk
0:02:56.7]} 4. Qxd4 {[%clk 0:03:00.4]} 4... Nc6 {[%clk 0:02:57.3]} 5. Qh4 {[%clk
0:03:01.3]} 5... Qa5 {[%clk 0:02:53.4]} 6. O-O-O {[%clk 0:03:02.2]} 6... d6
{[%clk 0:02:53.3]} 7. e4 {[%clk 0:03:01.9]} 7... Be6 {[%clk 0:02:51.8]} 8. a3
{[%clk 0:03:02.3]} 8... h6 {[%clk 0:02:51.8]} 9. Bd2 {[%clk 0:02:58.3]} 9... Qb6
{[%clk 0:02:47.7]} 10. Be3 {[%clk 0:02:47.9]} 10... Qa5 {[%clk 0:02:44.1]} 11.
Bd2 {[%clk 0:02:46.9]} 11... g5 {[%clk 0:02:44.4]} 12. Qg3 {[%clk 0:02:43.6]}
12... Qb6 {[%clk 0:02:39.2]} 13. Be3 {[%clk 0:02:27.4]} 13... Qc7 {[%clk
0:02:37.6]} 14. Bb5 {[%clk 0:02:23.3]} 14... Bg7 {[%clk 0:02:28.2]} 15. Nd5
{[%clk 0:02:17.2]} 15... Bxd5 {[%clk 0:02:23.6]} 16. exd5 {[%clk 0:02:18.1]}
16... a6 {[%clk 0:02:24.2]} 17. dxc6 {[%clk 0:02:08.7]} 17... axb5 {[%clk
0:02:23.8]} 18. cxb7 {[%clk 0:02:09.6]} 18... Qxb7 {[%clk 0:02:21.2]} 19. Qf3
{[%clk 0:02:08.4]} 19... Ne4 {[%clk 0:02:13.3]} 20. Ne2 {[%clk 0:02:06.7]} 20...
O-O {[%clk 0:02:06.5]} 21. Nc3 {[%clk 0:02:04.8]} 21... Bxc3 {[%clk 0:02:05.7]}
22. bxc3 {[%clk 0:02:03.6]} 22... Rxa3 {[%clk 0:02:05.8]} 23. Kb2 {[%clk
0:01:52.2]} 23... Rfa8 {[%clk 0:02:03.8]} 24. Ra1 {[%clk 0:01:52.1]} 24... b4
{[%clk 0:02:04.4]} 25. c4 {[%clk 0:01:40.1]} 25... b3 {[%clk 0:02:04.7]} 26.
Rxa3 {[%clk 0:01:37.8]} 26... bxc2+ {[%clk 0:02:04.7]} 27. Kxc2 {[%clk
0:01:38.7]} 27... Rxa3 {[%clk 0:02:03.4]} 28. Rb1 {[%clk 0:01:28.2]} 28... Rc3+
{[%clk 0:02:00.4]} 0-1

[Event "Late-Titled-Tuesday-Blitz-June-04-2024"]
[Site "Chess.com"]
[Date "2024.06.04"]
[Round "11"]
[White "annasargsyan_m"]
[Black "1g60-1"]
[Result "0-1"]
[WhiteElo "2567"]
[BlackElo "2462"]
[TimeControl "180+1"]
[EndTime "16:02:33 PDT"]
[Termination "1g60-1 won by resignation"]

1. d4 {[%clk 0:02:44.5]} 1... e6 {[%clk 0:02:59.9]} 2. c4 {[%clk 0:02:44.1]}
2... f5 {[%clk 0:02:59.9]} 3. g3 {[%clk 0:02:43.9]} 3... Nf6 {[%clk 0:03:00.3]}
4. Bg2 {[%clk 0:02:44.6]} 4... Be7 {[%clk 0:03:01]} 5. Nc3 {[%clk 0:02:44.9]}
5... O-O {[%clk 0:03:01.3]} 6. e4 {[%clk 0:02:45.6]} 6... fxe4 {[%clk
0:02:46.3]} 7. Nxe4 {[%clk 0:02:46.5]} 7... d5 {[%clk 0:02:40.1]} 8. Nxf6+
{[%clk 0:02:42.1]} 8... Bxf6 {[%clk 0:02:40.3]} 9. cxd5 {[%clk 0:02:42.6]} 9...
exd5 {[%clk 0:02:40.2]} 10. Ne2 {[%clk 0:02:43.3]} 10... c6 {[%clk 0:02:38.8]}
11. O-O {[%clk 0:02:43.7]} 11... Bg4 {[%clk 0:02:33.6]} 12. Be3 {[%clk
0:02:43.3]} 12... Nd7 {[%clk 0:02:32.4]} 13. Qc2 {[%clk 0:02:43.6]} 13... Qb6
{[%clk 0:02:23.1]} 14. Rad1 {[%clk 0:02:38.7]} 14... Rae8 {[%clk 0:02:20.5]} 15.
Rd2 {[%clk 0:02:36.5]} 15... Be7 {[%clk 0:02:14.6]} 16. a3 {[%clk 0:02:30.7]}
16... Nf6 {[%clk 0:02:11.8]} 17. Nf4 {[%clk 0:02:27.5]} 17... Bd6 {[%clk
0:02:07]} 18. h3 {[%clk 0:02:23.6]} 18... Bc8 {[%clk 0:02:06.7]} 19. Kh2 {[%clk
0:02:19.5]} 19... Ne4 {[%clk 0:02:07]} 20. Re2 {[%clk 0:02:17.8]} 20... Bf5
{[%clk 0:01:39]} 21. Qd1 {[%clk 0:02:10.3]} 21... Qc7 {[%clk 0:01:29.3]} 22.
Rfe1 {[%clk 0:02:09.1]} 22... g5 {[%clk 0:01:27.3]} 23. Nh5 {[%clk 0:02:06.6]}
23... Bg6 {[%clk 0:01:26.6]} 24. Rc2 {[%clk 0:02:01.9]} 24... Qf7 {[%clk
0:01:15.5]} 0-1

[Event "Late-Titled-Tuesday-Blitz-June-04-2024"]
[Site "Chess.com"]
[Date "2024.06.04"]
[Round "11"]
[White "Eduard_Limonov"]
[Black "jucAxx"]
[Result "1-0"]
[WhiteElo "2840"]
[BlackElo "2467"]
[TimeControl "180+1"]
[EndTime "16:02:44 PDT"]
[Termination "Eduard_Limonov won by checkmate"]

1. e4 {[%clk 0:02:59]} 1... e6 {[%clk 0:03:00.2]} 2. Nc3 {[%clk 0:02:59]} 2...
d5 {[%clk 0:03:00.5]} 3. g3 {[%clk 0:02:59.5]} 3... Nf6 {[%clk 0:02:58.1]} 4.
Bg2 {[%clk 0:02:59.7]} 4... c5 {[%clk 0:02:58.6]} 5. d3 {[%clk 0:02:49.7]} 5...
Be7 {[%clk 0:02:54.3]} 6. f4 {[%clk 0:02:49.7]} 6... b6 {[%clk 0:02:50]} 7. Nf3
{[%clk 0:02:43]} 7... Bb7 {[%clk 0:02:50]} 8. e5 {[%clk 0:02:39.7]} 8... Nfd7
{[%clk 0:02:49.7]} 9. O-O {[%clk 0:02:39.7]} 9... Nc6 {[%clk 0:02:50]} 10. Ne2
{[%clk 0:02:37.2]} 10... Qc7 {[%clk 0:02:49.1]} 11. c4 {[%clk 0:02:36.1]} 11...
O-O {[%clk 0:02:41.6]} 12. cxd5 {[%clk 0:02:22.4]} 12... exd5 {[%clk 0:02:41.7]}
13. d4 {[%clk 0:02:22.8]} 13... Rfd8 {[%clk 0:02:29.5]} 14. Be3 {[%clk
0:02:22.5]} 14... cxd4 {[%clk 0:02:23.3]} 15. Nexd4 {[%clk 0:02:21.7]} 15...
Nxd4 {[%clk 0:02:23.4]} 16. Nxd4 {[%clk 0:02:21.1]} 16... Bc5 {[%clk 0:02:19.5]}
17. Rc1 {[%clk 0:02:19.7]} 17... Qb8 {[%clk 0:02:17.4]} 18. Kh1 {[%clk
0:02:12.8]} 18... Nf8 {[%clk 0:02:15.2]} 19. Qd3 {[%clk 0:02:01.8]} 19... a5
{[%clk 0:02:03.2]} 20. Rfd1 {[%clk 0:01:56.3]} 20... Ba6 {[%clk 0:01:38]} 21.
Qf5 {[%clk 0:01:55.3]} 21... Bc8 {[%clk 0:01:32.7]} 22. Qg5 {[%clk 0:01:52.1]}
22... Bxd4 {[%clk 0:01:32]} 23. Bxd4 {[%clk 0:01:24.4]} 23... Ne6 {[%clk
0:01:29.8]} 24. Qh4 {[%clk 0:01:24.3]} 24... Nxd4 {[%clk 0:01:28.2]} 25. Qxd8#
{[%clk 0:01:23.9]} 1-0

[Event "Late-Titled-Tuesday-Blitz-June-04-2024"]
[Site "Chess.com"]
[Date "2024.06.04"]
[Round "11"]
[White "Synctel"]
[Black "rikchessmx"]
[Result "0-1"]
[WhiteElo "2098"]
[BlackElo "2347"]
[TimeControl "180+1"]
[EndTime "16:02:49 PDT"]
[Termination "rikchessmx won by resignation"]

1. d4 {[%clk 0:03:00.9]} 1... Nf6 {[%clk 0:02:48.6]} 2. Nf3 {[%clk 0:03:00.9]}
2... e6 {[%clk 0:02:49.5]} 3. e3 {[%clk 0:03:00.9]} 3... c5 {[%clk 0:02:49.5]}
4. Bd3 {[%clk 0:03:01]} 4... b6 {[%clk 0:02:49.5]} 5. Nbd2 {[%clk 0:03:01.4]}
5... Bb7 {[%clk 0:02:50.1]} 6. O-O {[%clk 0:03:01.2]} 6... d6 {[%clk 0:02:50.7]}
7. b3 {[%clk 0:02:59.7]} 7... Nbd7 {[%clk 0:02:51.2]} 8. Bb2 {[%clk 0:03:00.3]}
8... Be7 {[%clk 0:02:51.7]} 9. e4 {[%clk 0:02:59.4]} 9... O-O {[%clk 0:02:51.5]}
10. c4 {[%clk 0:02:58.5]} 10... Qc7 {[%clk 0:02:51]} 11. d5 {[%clk 0:02:57.9]}
11... e5 {[%clk 0:02:50.1]} 12. Re1 {[%clk 0:02:56.2]} 12... Rfe8 {[%clk
0:02:46.9]} 13. Nf1 {[%clk 0:02:56.6]} 13... Bf8 {[%clk 0:02:46.9]} 14. Ng3
{[%clk 0:02:57.1]} 14... g6 {[%clk 0:02:44.9]} 15. Bc1 {[%clk 0:02:54.8]} 15...
Bg7 {[%clk 0:02:45]} 16. h3 {[%clk 0:02:42]} 16... a5 {[%clk 0:02:43.7]} 17. a4
{[%clk 0:02:40.7]} 17... Nb8 {[%clk 0:02:40.7]} 18. Nh2 {[%clk 0:02:37.3]} 18...
Bc8 {[%clk 0:02:40.3]} 19. f4 {[%clk 0:02:37.3]} 19... exf4 {[%clk 0:02:38.6]}
20. Bxf4 {[%clk 0:02:36.6]} 20... Nh5 {[%clk 0:02:35.2]} 21. Nxh5 {[%clk
0:02:34.6]} 21... Bxa1 {[%clk 0:02:34]} 22. Qxa1 {[%clk 0:02:32.9]} 22... gxh5
{[%clk 0:02:33.6]} 23. Bh6 {[%clk 0:02:21.8]} 23... f5 {[%clk 0:02:32.8]} 24.
exf5 {[%clk 0:02:05.7]} 24... Rxe1+ {[%clk 0:02:31.8]} 25. Qxe1 {[%clk
0:02:06.6]} 25... Qf7 {[%clk 0:02:31.1]} 26. Qg3+ {[%clk 0:01:57.8]} 26... Kh8
{[%clk 0:02:30.8]} 27. Qxd6 {[%clk 0:01:57.7]} 27... Nd7 {[%clk 0:02:28]} 28.
Nf3 {[%clk 0:01:52.5]} 28... Qf6 {[%clk 0:02:25.3]} 29. Qg3 {[%clk 0:01:30]}
29... Qxh6 {[%clk 0:02:21.4]} 30. Ng5 {[%clk 0:01:27.2]} 30... Qf6 {[%clk
0:02:16.2]} 31. Qe3 {[%clk 0:01:12.7]} 31... Qd4 {[%clk 0:02:00.5]} 32. Qxd4+
{[%clk 0:01:11.2]} 32... cxd4 {[%clk 0:02:00.3]} 0-1

[Event "Late-Titled-Tuesday-Blitz-June-04-2024"]
[Site "Chess.com"]
[Date "2024.06.04"]
[Round "11"]
[White "FXDon77"]
[Black "nihalsarin"]
[Result "0-1"]
[WhiteElo "2885"]
[BlackElo "3218"]
[TimeControl "180+1"]
[EndTime "16:02:51 PDT"]
[Termination "nihalsarin won by resignation"]

1. e4 {[%clk 0:03:00.9]} 1... c5 {[%clk 0:02:59.6]} 2. Nf3 {[%clk 0:03:00.8]}
2... e6 {[%clk 0:03:00.1]} 3. d4 {[%clk 0:03:00.9]} 3... cxd4 {[%clk 0:03:01]}
4. Nxd4 {[%clk 0:03:01.1]} 4... a6 {[%clk 0:03:01.8]} 5. c4 {[%clk 0:03:01.4]}
5... Nf6 {[%clk 0:03:01]} 6. Nc3 {[%clk 0:03:01.9]} 6... Qc7 {[%clk 0:03:01.6]}
7. a3 {[%clk 0:03:01.4]} 7... b6 {[%clk 0:03:01.8]} 8. Be3 {[%clk 0:03:01.5]}
8... Bb7 {[%clk 0:03:02.2]} 9. f3 {[%clk 0:03:02.1]} 9... Nc6 {[%clk 0:03:01.1]}
10. Rc1 {[%clk 0:02:59.3]} 10... Nxd4 {[%clk 0:03:01.2]} 11. Bxd4 {[%clk
0:02:59.2]} 11... Bd6 {[%clk 0:03:01.9]} 12. g3 {[%clk 0:02:52.4]} 12... h5
{[%clk 0:03:01.7]} 13. Na4 {[%clk 0:02:28]} 13... h4 {[%clk 0:02:59.7]} 14. Nxb6
{[%clk 0:02:15.7]} 14... hxg3 {[%clk 0:02:59.4]} 15. Nxa8 {[%clk 0:02:10.7]}
15... Bxa8 {[%clk 0:03:00.3]} 16. Bg2 {[%clk 0:01:57.7]} 16... gxh2 {[%clk
0:02:55.3]} 17. c5 {[%clk 0:01:51.7]} 17... Bg3+ {[%clk 0:02:50]} 18. Kf1 {[%clk
0:01:38.8]} 18... Bc6 {[%clk 0:02:49.2]} 19. a4 {[%clk 0:01:31.4]} 19... Nh5
{[%clk 0:02:42.2]} 20. Rc3 {[%clk 0:01:15.7]} 20... Bh4 {[%clk 0:02:25.7]} 21.
Bf2 {[%clk 0:01:13]} 21... Bxf2 {[%clk 0:02:25.5]} 22. Kxf2 {[%clk 0:01:13.4]}
22... Qg3+ {[%clk 0:02:26.3]} 23. Kf1 {[%clk 0:01:13.8]} 23... Nf4 {[%clk
0:02:27.1]} 24. Qd2 {[%clk 0:01:12]} 24... Bxa4 {[%clk 0:02:27.8]} 25. b3 {[%clk
0:00:53.2]} 25... Bb5+ {[%clk 0:02:27.7]} 26. Rc4 {[%clk 0:00:53.9]} 26... Bxc4+
{[%clk 0:02:28.2]} 27. bxc4 {[%clk 0:00:54.3]} 27... a5 {[%clk 0:02:24.8]} 28.
Qf2 {[%clk 0:00:53.9]} 28... Qxf2+ {[%clk 0:02:22]} 29. Kxf2 {[%clk 0:00:54]}
29... Nxg2 {[%clk 0:02:22.6]} 30. Kxg2 {[%clk 0:00:46.5]} 30... a4 {[%clk
0:02:22.4]} 31. Ra1 {[%clk 0:00:45.9]} 31... h1=Q+ {[%clk 0:02:21.9]} 32. Rxh1
{[%clk 0:00:45.5]} 32... Rxh1 {[%clk 0:02:22.8]} 33. Kxh1 {[%clk 0:00:46.3]}
33... a3 {[%clk 0:02:23.4]} 0-1

[Event "Late-Titled-Tuesday-Blitz-June-04-2024"]
[Site "Chess.com"]
[Date "2024.06.04"]
[Round "11"]
[White "Kiborg95"]
[Black "IlyaGrigorjev"]
[Result "1-0"]
[WhiteElo "2928"]
[BlackElo "2860"]
[TimeControl "180+1"]
[EndTime "16:03:02 PDT"]
[Termination "Kiborg95 won by resignation"]

1. e4 {[%clk 0:03:00.9]} 1... e5 {[%clk 0:02:59.5]} 2. Nf3 {[%clk 0:03:00.8]}
2... Nc6 {[%clk 0:03:00.2]} 3. Bc4 {[%clk 0:03:00.9]} 3... Bc5 {[%clk
0:03:00.2]} 4. O-O {[%clk 0:03:00.6]} 4... Nf6 {[%clk 0:03:00.8]} 5. d3 {[%clk
0:03:01.2]} 5... d6 {[%clk 0:02:59.9]} 6. c3 {[%clk 0:03:01.5]} 6... a6 {[%clk
0:02:58.1]} 7. Bb3 {[%clk 0:03:01.1]} 7... O-O {[%clk 0:02:58.2]} 8. h3 {[%clk
0:02:59.9]} 8... h6 {[%clk 0:02:55.3]} 9. Re1 {[%clk 0:03:00.3]} 9... Ba7 {[%clk
0:02:54.3]} 10. Nbd2 {[%clk 0:03:00.6]} 10... Be6 {[%clk 0:02:53.6]} 11. Bc2
{[%clk 0:02:59.7]} 11... Re8 {[%clk 0:02:51.3]} 12. Nf1 {[%clk 0:03:00.2]} 12...
d5 {[%clk 0:02:51.2]} 13. exd5 {[%clk 0:03:01.1]} 13... Bxd5 {[%clk 0:02:48.6]}
14. Ng3 {[%clk 0:03:01.5]} 14... Qd7 {[%clk 0:02:45.6]} 15. b4 {[%clk 0:03:01]}
15... b5 {[%clk 0:02:04.9]} 16. a4 {[%clk 0:03:00.5]} 16... Rad8 {[%clk
0:01:51.3]} 17. axb5 {[%clk 0:03:00.8]} 17... axb5 {[%clk 0:01:52.2]} 18. Rxa7
{[%clk 0:03:01.2]} 18... Nxa7 {[%clk 0:01:51.5]} 19. Nxe5 {[%clk 0:03:01.5]}
19... Qc8 {[%clk 0:01:46.4]} 20. d4 {[%clk 0:03:01.6]} 20... Nc6 {[%clk
0:01:40.8]} 21. Bf4 {[%clk 0:03:01.8]} 21... Nxe5 {[%clk 0:01:36.4]} 22. Bxe5
{[%clk 0:03:02.7]} 22... Qa6 {[%clk 0:01:23.6]} 23. Nf5 {[%clk 0:02:46.1]} 23...
Qc6 {[%clk 0:00:56.9]} 24. Re3 {[%clk 0:02:15.1]} 24... Re6 {[%clk 0:00:28.4]}
25. Rg3 {[%clk 0:02:06.2]} 25... Nh5 {[%clk 0:00:28.7]} 26. Qxh5 {[%clk
0:02:04.4]} 1-0

[Event "Late-Titled-Tuesday-Blitz-June-04-2024"]
[Site "Chess.com"]
[Date "2024.06.04"]
[Round "11"]
[White "scrambleyourbrain"]
[Black "HowTo2Draw"]
[Result "1/2-1/2"]
[WhiteElo "2409"]
[BlackElo "2591"]
[TimeControl "180+1"]
[EndTime "16:03:16 PDT"]
[Termination "Game drawn by repetition"]

1. e4 {[%clk 0:03:00.9]} 1... c6 {[%clk 0:02:58.7]} 2. Nf3 {[%clk 0:03:00.8]}
2... d5 {[%clk 0:02:57.8]} 3. Nc3 {[%clk 0:03:01.1]} 3... dxe4 {[%clk
0:02:56.6]} 4. Nxe4 {[%clk 0:03:01.1]} 4... Bg4 {[%clk 0:02:55.8]} 5. Bc4 {[%clk
0:02:57.7]} 5... e6 {[%clk 0:02:54.8]} 6. h3 {[%clk 0:02:56.3]} 6... Bxf3 {[%clk
0:02:53.8]} 7. Qxf3 {[%clk 0:02:56]} 7... Nd7 {[%clk 0:02:52.4]} 8. d4 {[%clk
0:02:54.9]} 8... Ngf6 {[%clk 0:02:50.3]} 9. Bg5 {[%clk 0:02:53.9]} 9... Be7
{[%clk 0:02:47.6]} 10. Nxf6+ {[%clk 0:02:54]} 10... Bxf6 {[%clk 0:02:45.3]} 11.
Bxf6 {[%clk 0:02:53.6]} 11... Qxf6 {[%clk 0:02:44.4]} 12. Qxf6 {[%clk
0:02:51.6]} 12... Nxf6 {[%clk 0:02:43.6]} 13. c3 {[%clk 0:02:52.5]} 13... O-O-O
{[%clk 0:02:42]} 14. O-O-O {[%clk 0:02:52.2]} 14... Ne4 {[%clk 0:02:35.6]} 15.
Rhf1 {[%clk 0:02:51.3]} 15... Nd6 {[%clk 0:02:34.2]} 16. Bd3 {[%clk 0:02:50.8]}
16... Rd7 {[%clk 0:02:29.9]} 17. Rde1 {[%clk 0:02:49.6]} 17... g6 {[%clk
0:02:20.4]} 18. f4 {[%clk 0:02:47]} 18... Rhd8 {[%clk 0:02:18.7]} 19. Re5 {[%clk
0:02:45.3]} 19... Ne8 {[%clk 0:02:08.9]} 20. g4 {[%clk 0:02:37.1]} 20... Rd5
{[%clk 0:02:05.4]} 21. Rxd5 {[%clk 0:02:36]} 21... exd5 {[%clk 0:01:51.3]} 22.
f5 {[%clk 0:02:35.7]} 22... g5 {[%clk 0:01:37]} 23. h4 {[%clk 0:02:34.5]} 23...
h6 {[%clk 0:01:31.8]} 24. hxg5 {[%clk 0:02:34.4]} 24... hxg5 {[%clk 0:01:31.4]}
25. Rh1 {[%clk 0:02:34.4]} 25... Nf6 {[%clk 0:01:31.1]} 26. Be2 {[%clk
0:02:27.3]} 26... Re8 {[%clk 0:01:27.5]} 27. Kd1 {[%clk 0:02:27.3]} 27... Kd7
{[%clk 0:01:25.5]} 28. Rh6 {[%clk 0:02:25]} 28... Ke7 {[%clk 0:01:23.5]} 29. Bf3
{[%clk 0:02:16.9]} 29... Rd8 {[%clk 0:01:20.1]} 30. Kd2 {[%clk 0:02:13.9]} 30...
Rd6 {[%clk 0:01:19.1]} 31. Kd3 {[%clk 0:02:12.6]} 31... Kf8 {[%clk 0:01:18]} 32.
Rh8+ {[%clk 0:02:08.9]} 32... Ke7 {[%clk 0:01:14.2]} 33. Rh6 {[%clk 0:02:08.5]}
33... Rd8 {[%clk 0:01:12.3]} 34. Kd2 {[%clk 0:02:07.2]} 34... a5 {[%clk
0:01:10.5]} 35. a4 {[%clk 0:02:06.1]} 35... Rb8 {[%clk 0:01:07.8]} 36. Kc2
{[%clk 0:01:59.2]} 36... b5 {[%clk 0:01:06.6]} 37. axb5 {[%clk 0:01:58.8]} 37...
Rxb5 {[%clk 0:01:05.2]} 38. Rh1 {[%clk 0:01:57.7]} 38... Kd6 {[%clk 0:00:56.1]}
39. Rh6 {[%clk 0:01:56.6]} 39... Ke7 {[%clk 0:00:55.6]} 40. Rh1 {[%clk
0:01:57.3]} 40... Kd6 {[%clk 0:00:55.2]} 41. Rh6 {[%clk 0:01:57.3]} 41... Ke7
{[%clk 0:00:55]} 1/2-1/2

[Event "Late-Titled-Tuesday-Blitz-June-04-2024"]
[Site "Chess.com"]
[Date "2024.06.04"]
[Round "11"]
[White "Heinza9"]
[Black "Nemsko"]
[Result "1-0"]
[WhiteElo "2327"]
[BlackElo "2304"]
[TimeControl "180+1"]
[EndTime "16:03:18 PDT"]
[Termination "Heinza9 won by checkmate"]

1. c4 {[%clk 0:03:00.9]} 1... e5 {[%clk 0:02:57.4]} 2. Nc3 {[%clk 0:03:00.7]}
2... Nf6 {[%clk 0:02:56]} 3. Nf3 {[%clk 0:02:59.6]} 3... Nc6 {[%clk 0:02:55.9]}
4. d3 {[%clk 0:02:57.4]} 4... Bc5 {[%clk 0:02:51.9]} 5. e3 {[%clk 0:02:55.9]}
5... d6 {[%clk 0:02:49.4]} 6. Be2 {[%clk 0:02:55.5]} 6... a5 {[%clk 0:02:49]} 7.
O-O {[%clk 0:02:54.6]} 7... O-O {[%clk 0:02:48.7]} 8. b3 {[%clk 0:02:45.5]} 8...
h6 {[%clk 0:02:47.5]} 9. Bb2 {[%clk 0:02:44.8]} 9... Bf5 {[%clk 0:02:44.3]} 10.
d4 {[%clk 0:02:42.4]} 10... exd4 {[%clk 0:02:42.6]} 11. exd4 {[%clk 0:02:43.3]}
11... Ba7 {[%clk 0:02:41.1]} 12. Nb5 {[%clk 0:02:42.1]} 12... Re8 {[%clk
0:02:34.4]} 13. Bd3 {[%clk 0:02:41.8]} 13... Bg4 {[%clk 0:02:14.9]} 14. h3
{[%clk 0:02:40.1]} 14... Bh5 {[%clk 0:02:14]} 15. g4 {[%clk 0:02:24.3]} 15...
Bg6 {[%clk 0:02:13.7]} 16. Bxg6 {[%clk 0:02:23.1]} 16... fxg6 {[%clk 0:02:13.9]}
17. Qd3 {[%clk 0:02:23.5]} 17... g5 {[%clk 0:02:05.8]} 18. Rae1 {[%clk
0:02:22.3]} 18... Qd7 {[%clk 0:01:59.6]} 19. Qg6 {[%clk 0:02:19.6]} 19... Rxe1
{[%clk 0:01:29]} 20. Rxe1 {[%clk 0:02:20.5]} 20... Rf8 {[%clk 0:01:25.5]} 21. d5
{[%clk 0:02:13.2]} 21... Bxf2+ {[%clk 0:01:24.5]} 22. Kxf2 {[%clk 0:02:11]}
22... Ne5 {[%clk 0:01:23.3]} 23. Nxe5 {[%clk 0:02:00.3]} 23... dxe5 {[%clk
0:01:05.2]} 24. Kg2 {[%clk 0:01:56.9]} 24... Nxg4 {[%clk 0:00:59.2]} 25. Qe6+
{[%clk 0:01:56.6]} 25... Qxe6 {[%clk 0:00:57.6]} 26. dxe6 {[%clk 0:01:57.5]}
26... Rf2+ {[%clk 0:00:54]} 27. Kg3 {[%clk 0:01:57.3]} 27... Rxb2 {[%clk
0:00:53.6]} 28. Kxg4 {[%clk 0:01:57.6]} 28... Kf8 {[%clk 0:00:53.5]} 29. Rxe5
{[%clk 0:01:56.3]} 29... Ke7 {[%clk 0:00:53.4]} 30. Nxc7 {[%clk 0:01:56.4]}
30... Rxa2 {[%clk 0:00:52.9]} 31. Nd5+ {[%clk 0:01:56.4]} 31... Ke8 {[%clk
0:00:52.5]} 32. e7 {[%clk 0:01:56.3]} 32... Rg2+ {[%clk 0:00:52.3]} 33. Kf3
{[%clk 0:01:56]} 33... Rg1 {[%clk 0:00:52.6]} 34. Nc7+ {[%clk 0:01:56.1]} 34...
Kd7 {[%clk 0:00:51.4]} 35. e8=Q+ {[%clk 0:01:56.3]} 35... Kxc7 {[%clk
0:00:52.3]} 36. Rc5+ {[%clk 0:01:56.3]} 36... Kb6 {[%clk 0:00:51.9]} 37. Qb5+
{[%clk 0:01:53]} 37... Ka7 {[%clk 0:00:51.6]} 38. Qxa5+ {[%clk 0:01:53.3]} 38...
Kb8 {[%clk 0:00:47.6]} 39. Qd8+ {[%clk 0:01:54.2]} 39... Ka7 {[%clk 0:00:47.9]}
40. Ra5# {[%clk 0:01:55.1]} 1-0